{"text_format":"3","workbook":"xlsx","n_sheets":2,"sheets":["Unit_Price_Tab","SP_Info_Biditem_Category"],"not_rendered":{"defined_names":8},"read":"whole","date_system":"1900"}

{"sheet":"Unit_Price_Tab","index":0,"n_rows":141,"n_cols":6,"rows_kept":141,"merged":[[1,0,1,5]]}
[{"$nulls":3},"PREPARED BY:"]
["THE UNDERSIGNED CERTIFIES THAT (CONTRACTOR NAME)___________________________\nIS CURRENTLY REGISTERED WITH THE VIRGINIA STATE BOARD OF CONTRACTORS AS REQUIRED BY THE CODE OF VIRGINIA.  CERTIFICATE NUMBER _________________ WAS ISSUED ON THE ________DAY OF _____________, 20XX.  THE UNDERSIGNED FURTHER CERTIFIES THAT THE REGISTRATION FEE AND ALL RENEWAL FEES REQUIRED UNDER LAW HAVE BEEN PAID.  THE CONTRACTOR AGREES TO FURNISH ALL NECESSARY LABOR, EQUIPMENT, MATERIALS, AND ALL THINGS NECESSARY TO PERFORM THE WORK AS SET FORTH IN ACCORDANCE WITH THE PLANS AND SPECIFICATIONS. THE CONTRACTOR AGREES TO PERFORM RELATED WORK FOR THE FOLLOWING ITEMS AT THE FOLLOWING STIPULATED PRICES: (ALL PRICES INCLUDE PROVISION AND INSTALLATION)."]
["21-DES-ITB-591",null,null,"CHECKED BY:"]
[]
["MASTER ITEM #","DESCRIPTION","QTY","UNIT","UNIT PRICE","TOTAL"]
["C1",{"$f":"VLOOKUP(A6,Table_BidItem_CategoryClassification[#All],2,FALSE)","v":"GENERAL EARTH WORK"}]
["MASTER ITEM #","DESCRIPTION","QTY","UNIT","UNIT PRICE","TOTAL"]
["02200-C1-00130","Aggregate, VDOT #21-A  (Compacted in Place per VDOT standards & Specs)",{"$f":"ROUNDUP(79399*0.5/27,-1)","v":1480},"CY",null,{"$f":"IFERROR($C8*$E8, \"\")","v":{"v":0,"d":"$0.00"}}]
["01000-C1-SP121","WMATA Grate Cover (per plan detals)",3,"EA",null,{"$f":"IFERROR($C9*$E9, \"\")","v":{"v":0,"d":"$0.00"}}]
[{"$nulls":4},"SUBTOTAL",{"$f":"SUBTOTAL(109,Unit_Price_Tab!$F$8:$F$9)","v":{"v":0,"d":"$0.00"}}]
[]
["C2",{"$f":"VLOOKUP(A12,Table_BidItem_CategoryClassification[#All],2,FALSE)","v":"CONCRETE WORK"}]
["MASTER ITEM #","DESCRIPTION","QTY","UNIT","UNIT PRICE","TOTAL"]
["02750-C2-00020","Concrete Curb, Standard Header Curb C-3 (Arlington County Detail R-2.0), includes curb for aprons, ramps, etc.",{"$f":"ROUNDUP(233+259+494,-1)","v":990},"LF",null,{"$f":"IFERROR($C14*$E14, \"\")","v":{"v":0,"d":"$0.00"}}]
["02750-C2-00060","Concrete Curb & Gutter, Standard C-2 and C-2R (Arlington County Detail R-2.0), includes curb & gutter for aprons, ramps, etc.",{"$f":"ROUNDUP(270+296+137+485+117+323+22,-1)","v":1650},"LF",null,{"v":0,"d":"$0.00"}]
["02611-C2-00110","Concrete Sidewalk, 4\" Thickness (Arlington County Detail R-2.0)",{"$f":"ROUNDUP(8398/9,-1)","v":940},"SY",null,{"v":0,"d":"$0.00"}]
["02611-C2-00190","CG-12 Detectable Warning Surface - Truncated Domes",{"$f":"ROUNDUP(100/9,0)","v":12},"SY",null,{"v":0,"d":"$0.00"}]
["02611-C2-00170","Concrete Driveway Entrance, 6\" Thick Residential (Arlington County Details R-2.4A, R-2.4B, R-2.4C, R-2.4D)",{"$f":"ROUNDUP(593/9,0)","v":66},"SY",null,{"v":0,"d":"$0.00"}]
["02611-C2-00180","Concrete Driveway Entrance, 9\" Thick Commercial (Arlington County Details R-2.4A, R-2.4B, R-2.4C, R-2.4D)",{"$f":"ROUNDUP(1794/9,0)","v":200},"SY",null,{"v":0,"d":"$0.00"}]
["02611-C2-SP010","Median Strip (per Arlington County Detail R-1.4)",{"$f":"ROUNDUP(2288/9,0)","v":255},"SY",null,{"$f":"IFERROR($C20*$E20, \"\")","v":{"v":0,"d":"$0.00"}}]
[{"$nulls":4},"SUBTOTAL",{"$f":"SUBTOTAL(109,Unit_Price_Tab!$F$14:$F$20)","v":{"v":0,"d":"$0.00"}}]
[]
["C3",{"$f":"VLOOKUP(A23,Table_BidItem_CategoryClassification[#All],2,FALSE)","v":"ASPHALT WORK"}]
["MASTER ITEM #","DESCRIPTION","QTY","UNIT","UNIT\nPRICE","TOTAL"]
["02600-C3-00010","Asphalt Concrete, Planing or Milling (1/2\" to 3\" Depth)",{"$f":"ROUNDUP(14771/9,-1)","v":1650},"SY",null,{"$f":"IFERROR($C25*$E25, \"\")","v":{"v":0,"d":"$0.00"}}]
["02600-C3-00030","Asphalt Concrete, Base Course (VDOT BM-25.0A)",{"$f":"ROUNDUP(79399*6/9*120/2000,0)","v":3176},"TON",null,{"v":0,"d":"$0.00"}]
["02600-C3-00060","Asphalt Concrete, Surface Course (VDOT SM-9.5A)",{"$f":"ROUNDUP(79399*2/9*120/2000,0)","v":1059},"TON",null,{"v":0,"d":"$0.00"}]
[{"$nulls":4},"SUBTOTAL",{"$f":"SUBTOTAL(109,Unit_Price_Tab!$F$25:$F$27)","v":{"v":0,"d":"$0.00"}}]
[]
["C4",{"$f":"VLOOKUP(A30,Table_BidItem_CategoryClassification[#All],2,FALSE)","v":"STORM SEWER UTILITY WORK"}]
["MASTER ITEM #","DESCRIPTION","QTY","UNIT","UNIT\nPRICE","TOTAL"]
["02500-C4-00620","15\" Pipe, RCP Class III, In Place Up to 6' Deep",{"$f":"ROUNDUP(67.5+11.54,0)","v":80},"LF",null,{"$f":"IFERROR($C32*$E32, \"\")","v":{"v":0,"d":"$0.00"}}]
["02505-C4-00630","15\" Pipe, RCP Class III, In Place 6' to 8' Deep",{"$f":"ROUNDUP(71.01,0)","v":72},"LF",null,{"v":0,"d":"$0.00"}]
["02500-C4-00820","15\" Pipe, RCP Class IV, In Place Up to 6' Deep",{"$f":"ROUNDUP(126.02,0)","v":127},"LF",null,{"v":0,"d":"$0.00"}]
["02505-C4-01440","Underdrain, Standard VDOT UD-4",{"$f":"ROUNDUP(98+120+23+260,0)","v":501},"LF",null,{"$f":"IFERROR($C35*$E35, \"\")","v":{"v":0,"d":"$0.00"}}]
["02505-C4-00010","Storm Manhole MH-1 (Arlington County Detail D-3.0), In Place, DEPTH   8'",3,"EA",null,{"v":0,"d":"$0.00"}]
["02505-C4-00080","CB-2 (Arlington County Standards), In Place Up to 6' Deep",7,"EA",null,{"v":0,"d":"$0.00"}]
["02505-C4-00180","Curb Drop Inlet, Standard VDOT DI-2B (12\" to 24\" Pipe), In Place Up to 9' Deep, Inlet Throat Length 4' to 20'",2,"EA",null,{"v":0,"d":"$0.00"}]
["02505-C4-00600","Storm Manhole, Catch Basin, Drop Inlet, Yard Inlet, or Grate Inlet, Remove",4,"EA",null,{"v":0,"d":"$0.00"}]
["02500-C4-00011","Storm Manhole MH-1 (Arlington County Detail D-3.0), In Place, PER ADDITIONAL VF OVER 8'",{"$f":"ROUNDUP(4+5+1,0)","v":10},"VF",null,{"$f":"IFERROR($C40*$E40, \"\")","v":{"v":0,"d":"$0.00"}}]
["02505-C4-00090","CB-2 (Arlington County Standards), Each VF Over 6' Deep",{"$f":"ROUNDUP(6+7+7+5,0)","v":25},"VF",null,{"v":0,"d":"$0.00"}]
["02500-C4-SP010","15\" Pipe, RCP Class IV, In Place > 6' Deep",{"$f":"ROUNDUP(23.08+43.53+51.78+11.38+55.97+44.83,0)","v":231},"LF",null,{"$f":"IFERROR($C42*$E42, \"\")","v":{"v":0,"d":"$0.00"}}]
["02500-C4-SP020","18\" Pipe, RCP Class IV, In Place > 6' Deep",{"$f":"ROUNDUP(84.19+19.54,0)","v":104},"LF",null,{"$f":"IFERROR($C43*$E43, \"\")","v":{"v":0,"d":"$0.00"}}]
["02500-C4-SP030","15\" RCP Pipe Removal (not included in new installation)",{"$f":"ROUNDUP(67+21+201,0)","v":289},"LF",null,{"$f":"IFERROR($C44*$E44, \"\")","v":{"v":0,"d":"$0.00"}}]
["02500-C4-SP040","27\" RCP Pipe Removal (not included in new installation)",13,"LF",null,{"$f":"IFERROR($C45*$E45, \"\")","v":{"v":0,"d":"$0.00"}}]
[{"$nulls":4},"SUBTOTAL",{"$f":"SUBTOTAL(109,Unit_Price_Tab!$F$32:$F$45)","v":{"v":0,"d":"$0.00"}}]
[]
["C5",{"$f":"VLOOKUP(A48,Table_BidItem_CategoryClassification[#All],2,FALSE)","v":"GUARDRAIL"}]
["MASTER ITEM #","DESCRIPTION","QTY","UNIT","UNIT\nPRICE","TOTAL"]
[{"$nulls":4},"SUBTOTAL",{"v":0,"d":"$0.00"}]
[]
["C6",{"$f":"VLOOKUP(A52,Table_BidItem_CategoryClassification[#All],2,FALSE)","v":"WATERMAIN WORK"}]
["MASTER ITEM #","DESCRIPTION","QTY","UNIT","UNIT\nPRICE","TOTAL"]
[{"$nulls":4},"SUBTOTAL",{"v":0,"d":"$0.00"}]
[]
["C7",{"$f":"VLOOKUP(A56,Table_BidItem_CategoryClassification[#All],2,FALSE)","v":"SANITARY SEWER WORK"}]
["MASTER ITEM #","DESCRIPTION","QTY","UNIT","UNIT\nPRICE","TOTAL"]
[{"$nulls":4},"SUBTOTAL",{"v":0,"d":"$0.00"}]
[]
["C8",{"$f":"VLOOKUP(A60,Table_BidItem_CategoryClassification[#All],2,FALSE)","v":"TRAFFIC SIGNAL WORK"}]
["MASTER ITEM #","DESCRIPTION","QTY","UNIT","UNIT\nPRICE","TOTAL"]
["13160-C8-03000","Traffic Signal Cost",1,"LS",null,{"$f":"IFERROR($C62*$E62, \"\")","v":{"v":0,"d":"$0.00"}}]
[{"$nulls":4},"SUBTOTAL",{"$f":"SUBTOTAL(109,Unit_Price_Tab!$F$62:$F$62)","v":{"v":0,"d":"$0.00"}}]
[]
["C9",{"$f":"VLOOKUP(A65,Table_BidItem_CategoryClassification[#All],2,FALSE)","v":"STREET LIGHTING WORK"}]
["MASTER ITEM #","DESCRIPTION","QTY","UNIT","UNIT\nPRICE","TOTAL"]
["14030-C9-00040","Furnish and Install 2 Inch Sch 40 PVC Conduit in Trench (Detail 14030-01)",{"$f":"ROUNDUP(133+176,0)","v":309},"LF",null,{"$f":"IFERROR($C67*$E67, \"\")","v":{"v":0,"d":"$0.00"}}]
["14040-C9-00170","Furnish and Install Junction Box and Lid SMALL (Detail 14040-01)",3,"EA",null,{"v":0,"d":"$0.00"}]
["14040-C9-00220","Enter Existing Junction Box",2,"EA",null,{"v":0,"d":"$0.00"}]
["14050-C9-00260","Furnish & Install # 6 TNNH Copper Cable",309,"LF",null,{"v":0,"d":"$0.00"}]
["14060-C9-00290","Install Streetlight Pole Foundation (Detail 14060-01)",3,"EA",null,{"v":0,"d":"$0.00"}]
["14060-C9-00350","Removal of Existing Foundation - up to 4' Deep",1,"EA",null,{"v":0,"d":"$0.00"}]
["14160-C9-00910","Decorative Post-Top Aluminum Streetlight Pole with Single Post-Top Luminaire per Arlington Lighting Standard 14112-01",3,"EA",null,{"v":0,"d":"$0.00"}]
[{"$nulls":4},"SUBTOTAL",{"$f":"SUBTOTAL(109,Unit_Price_Tab!$F$67:$F$73)","v":{"v":0,"d":"$0.00"}}]
[]
["C10",{"$f":"VLOOKUP(A76,Table_BidItem_CategoryClassification[#All],2,FALSE)","v":"PAVEMENT MARKING AND SIGNAGE WORK"}]
["MASTER ITEM #","DESCRIPTION","QTY","UNIT","UNIT\nPRICE","TOTAL"]
["02900-C10-00030","Twelve (12) Inch Transverse Markings",{"$f":"ROUNDUP(64.46,0)","v":65},"LF",null,{"$f":"IFERROR($C78*$E78, \"\")","v":{"v":0,"d":"$0.00"}}]
["02900-C10-00040","Eighteen (18) Inch Transverse Markings",{"$f":"ROUNDUP(39.73+10.13+31.54+10.95+22.39+40.35+10.71,-1)","v":170},"LF",null,{"v":0,"d":"$0.00"}]
["02900-C10-00050","Twenty Four (24) Inch Transverse Markings, Note: Used For Continental (Ladder) Crosswalk",{"$f":"87*10+10*7","v":940},"LF",null,{"v":0,"d":"$0.00"}]
["02900-C10-00070","Four (4) Inch Longitudinal Solid Line",{"$f":"ROUNDUP(6387.71,-1)","v":6390},"LF",null,{"v":0,"d":"$0.00"}]
["02900-C10-00080","Four (4) Inch Longitudinal Skip Line (Ten (10) Foot Line/Thirty (30) Foot Spacing), Note: Forty (40) LF Consists of Ten (10) LF of Marking and Thirty (30) LF of Space",{"$f":"ROUNDUP(255+291+600+600,-1)","v":1750},"LF",null,{"v":0,"d":"$0.00"}]
["02900-C10-00120","Six (6) Inch Longitudinal Solid Line",{"$f":"ROUNDUP(92.41+442.97,-1)","v":540},"LF",null,{"v":0,"d":"$0.00"}]
["02900-C10-00160","Six (6) Inch Longitudinal Skip Line (Two (2) Foot Line/ Four (4) Foot Spacing), Note: Twelve (12) LF Consists of Two (2) LF of Marking and Four (4) LF of Space",{"$f":"ROUNDUP(78*2+38+38+41+26+57+56+42*2+26*2,-1)","v":550},"LF",null,{"v":0,"d":"$0.00"}]
["02900-C10-00230","Eight (8) Foot Letters, Note: 'Turn Only' (for example)",4,"EA",null,{"v":0,"d":"$0.00"}]
["02900-C10-00240","Single Arrows",2,"EA",null,{"v":0,"d":"$0.00"}]
["02900-C10-00290","Standard Bicycle Symbols (MUTCD, Chapter 9C, Figure 9C-3), \"Bike Symbol\", \"Helmeted Bicyclist Symbol\"",6,"EA",null,{"v":0,"d":"$0.00"}]
["02900-C10-00350","Colorized Bike Lane Coatings (per Supplemental Specification 02901)",{"$f":"ROUNDUP(235+6*17+4*19+6*14+6*20,0)","v":617},"SF",null,{"v":0,"d":"$0.00"}]
["02900-C10-00410","Traffic Control Sign (Typical Stop, Yield, No Parking, Speed Limit, or Similar), Install per Detail SG-1.0",4,"EA",null,{"v":0,"d":"$0.00"}]
["02900-C10-00430","Traffic Control Sign (Typical Stop, Yield, No Parking, Speed Limit, or Similar), Relocate with New Post",9,"EA",null,{"v":0,"d":"$0.00"}]
["02900-C10-00440","Traffic Control Sign (Typical Stop, Yield, No Parking, Speed Limit, or Similar), Mount Sign to Light or Utility Pole",1,"EA",null,{"v":0,"d":"$0.00"}]
["02900-C10-00441","Remove Existing signs",10,"EA",null,{"v":0,"d":"$0.00"}]
[{"$nulls":4},"SUBTOTAL",{"$f":"SUBTOTAL(109,Unit_Price_Tab!$F$78:$F$92)","v":{"v":0,"d":"$0.00"}}]
[]
["C11",{"$f":"VLOOKUP(A95,Table_BidItem_CategoryClassification[#All],2,FALSE)","v":"LANDSCAPE AND HARDSCAPE RESTORATION WORK"}]
["MASTER ITEM #","DESCRIPTION","QTY","UNIT","UNIT\nPRICE","TOTAL"]
["02800-C11-00020","Topsoil for Street Trees, Backfill Soil Mixture of 3/4 Existing Soil and 1/4 Organic Material (per Arlington County DPR Specification)",{"$f":"ROUNDUP(14029.96*0.5/27,0)","v":260},"CY",null,{"$f":"IFERROR($C97*$E97, \"\")","v":{"v":0,"d":"$0.00"}}]
["02801-C11-00060","Sod, Tall Fescue/Bluegrass Mixture",{"$f":"ROUNDUP(14029.96/9,0)","v":1559},"SY",null,{"v":0,"d":"$0.00"}]
["02800-C11-00500","Tree/Stump Removal - Class A. Remove and Dispose, Up to 6\" DBH to 12\" DBH (Diameter at Breast Height)",4,"EA",null,{"v":0,"d":"$0.00"}]
["02800-C11-00602","Trees, Deciduous - 1.5 to 2.0\" caliper",9,"EA",null,{"v":0,"d":"$0.00"}]
["02800-C11-00100","Brick Pavers, Including Concrete Base (Arlington County Detail R-2.1)",{"$f":"ROUNDUP(68.48/9,0)","v":8},"SY",null,{"v":0,"d":"$0.00"}]
[{"$nulls":4},"SUBTOTAL",{"$f":"SUBTOTAL(109,Unit_Price_Tab!$F$97:$F$101)","v":{"v":0,"d":"$0.00"}}]
[]
["C12",{"$f":"VLOOKUP(A104,Table_BidItem_CategoryClassification[#All],2,FALSE)","v":"BUS STOP SHELTER AND FURNISHINGS"}]
["MASTER ITEM #","DESCRIPTION","QTY","UNIT","UNIT\nPRICE","TOTAL"]
[{"$nulls":4},"SUBTOTAL",{"v":0,"d":"$0.00"}]
[]
["C13",{"$f":"VLOOKUP(A108,Table_BidItem_CategoryClassification[#All],2,FALSE)","v":"EROSION AND SEDIMENT CONTROL WORK"}]
["MASTER ITEM #","DESCRIPTION","QTY","UNIT","UNIT\nPRICE","TOTAL"]
[{"$nulls":4},"SUBTOTAL",{"v":0,"d":"$0.00"}]
[]
["C15",{"$f":"VLOOKUP(A112,Table_BidItem_CategoryClassification[#All],2,FALSE)","v":"UNLISTED WORK"}]
["MASTER ITEM #","DESCRIPTION","QTY","UNIT","UNIT\nPRICE","TOTAL"]
[{"$nulls":4},"SUBTOTAL",{"v":0,"d":"$0.00"}]
[]
["C16",{"$f":"VLOOKUP(A116,Table_BidItem_CategoryClassification[#All],2,FALSE)","v":"MOT AND RE-MOBILIZATION WORK"}]
["MASTER ITEM #","DESCRIPTION","QTY","UNIT","UNIT\nPRICE","TOTAL"]
[{"$nulls":4},"SUBTOTAL",{"v":0,"d":"$0.00"}]
[]
["C17",{"$f":"VLOOKUP(A120,Table_BidItem_CategoryClassification[#All],2,FALSE)","v":"STORMWATER WORK"}]
["MASTER ITEM #","DESCRIPTION","QTY","UNIT","UNIT\nPRICE","TOTAL"]
[{"$nulls":4},"SUBTOTAL",{"v":0,"d":"$0.00"}]
[]
["C18",{"$f":"VLOOKUP(A124,Table_BidItem_CategoryClassification[#All],2,FALSE)","v":"NON COUNTY UTILITIES"}]
["MASTER ITEM #","DESCRIPTION","QTY","UNIT","UNIT\nPRICE","TOTAL"]
[{"$nulls":4},"SUBTOTAL",{"v":0,"d":"$0.00"}]
[]
[]
[{"$nulls":4}," CONTRACT TOTAL (EXCLUDING PERCENTAGE ITEMS)",{"$f":"SUMIF(E:E,\"SUBTOTAL\",F:F)","v":{"v":0,"d":"$0.00"}}]
[]
["PCT",{"$f":"VLOOKUP(A131,Table_BidItem_CategoryClassification[#All],2,FALSE)","v":"PERCENTAGE LINE ITEMS"}]
["MASTER ITEM #","DESCRIPTION","QTY","UNIT","UNIT\nPRICE","TOTAL"]
["01500-C13-10000","Temporary Erosion and Sediment Controls",1,"LS",null,{"$f":"IFERROR($C133*$E133, \"\")","v":{"v":0,"d":"$0.00"}}]
["01000-C16-00010","Maintenance of Traffic (MOT)",1,"LS",null,{"$f":"IFERROR($C134*$E134, \"\")","v":{"v":0,"d":"$0.00"}}]
["01000-C16-00030","Mobilization and De-Mobilization",1,"LS",null,{"$f":"IFERROR($C135*$E135, \"\")","v":{"v":0,"d":"$0.00"}}]
["01500-SA-00200","SWPPP Administration",1,"LS",null,{"$f":"IFERROR($C136*$E136, \"\")","v":{"v":0,"d":"$0.00"}}]
[{"$nulls":4},"PERCENTAGE LINE ITEMS SUBTOTAL",{"$f":"SUBTOTAL(109,Unit_Price_Tab!$F$133:$F$136)","v":{"v":0,"d":"$0.00"}}]
[]
[]
[]
[{"$nulls":4},"PROJECT TOTAL:",{"$f":"$F$137+F129","v":{"v":0,"d":"$0.00"}}]

{"sheet":"SP_Info_Biditem_Category","index":1,"n_rows":24,"n_cols":5,"rows_kept":24,"hidden":true}
["CategoryNum","Category_Title","Item Type","Path","CategorySort"]
["C1","GENERAL EARTH WORK","Item","sites/extranet/EngineeringBureau/Lists/Info_BidItems_CategoryClassification",1]
["C2","CONCRETE WORK","Item","sites/extranet/EngineeringBureau/Lists/Info_BidItems_CategoryClassification",2]
["C3","ASPHALT WORK","Item","sites/extranet/EngineeringBureau/Lists/Info_BidItems_CategoryClassification",3]
["C4","STORM SEWER UTILITY WORK","Item","sites/extranet/EngineeringBureau/Lists/Info_BidItems_CategoryClassification",4]
["C5","GUARDRAIL","Item","sites/extranet/EngineeringBureau/Lists/Info_BidItems_CategoryClassification",5]
["C6","WATERMAIN WORK","Item","sites/extranet/EngineeringBureau/Lists/Info_BidItems_CategoryClassification",6]
["C7","SANITARY SEWER WORK","Item","sites/extranet/EngineeringBureau/Lists/Info_BidItems_CategoryClassification",7]
["C8","TRAFFIC SIGNAL WORK","Item","sites/extranet/EngineeringBureau/Lists/Info_BidItems_CategoryClassification",8]
["C9","STREET LIGHTING WORK","Item","sites/extranet/EngineeringBureau/Lists/Info_BidItems_CategoryClassification",9]
["C10","PAVEMENT MARKING AND SIGNAGE WORK","Item","sites/extranet/EngineeringBureau/Lists/Info_BidItems_CategoryClassification",10]
["C11","LANDSCAPE AND HARDSCAPE RESTORATION WORK","Item","sites/extranet/EngineeringBureau/Lists/Info_BidItems_CategoryClassification",11]
["C12","BUS STOP SHELTER AND FURNISHINGS","Item","sites/extranet/EngineeringBureau/Lists/Info_BidItems_CategoryClassification",12]
["C13","EROSION AND SEDIMENT CONTROL WORK","Item","sites/extranet/EngineeringBureau/Lists/Info_BidItems_CategoryClassification",13]
["C14","MATERIAL TESTING WORK","Item","sites/extranet/EngineeringBureau/Lists/Info_BidItems_CategoryClassification",14]
["C15","UNLISTED WORK","Item","sites/extranet/EngineeringBureau/Lists/Info_BidItems_CategoryClassification",15]
["C16","MOT AND RE-MOBILIZATION WORK","Item","sites/extranet/EngineeringBureau/Lists/Info_BidItems_CategoryClassification",16]
["M1","MAINTENANCE WORK","Item","sites/extranet/EngineeringBureau/Lists/Info_BidItems_CategoryClassification",101]
["M2","MOT WORK","Item","sites/extranet/EngineeringBureau/Lists/Info_BidItems_CategoryClassification",102]
["C17","STORMWATER WORK","Item","sites/extranet/EngineeringBureau/Lists/Info_BidItems_CategoryClassification",17]
["RM","REMOVED ITEM","Item","sites/extranet/EngineeringBureau/Lists/Info_BidItems_CategoryClassification",1001]
["C18","NON COUNTY UTILITIES","Item","sites/extranet/EngineeringBureau/Lists/Info_BidItems_CategoryClassification",18]
["PCT","PERCENTAGE LINE ITEMS","Item","sites/extranet/EngineeringBureau/Lists/Info_BidItems_CategoryClassification",500]
["VF","VDOT FEE","Item","sites/extranet/EngineeringBureau/Lists/Info_BidItems_CategoryClassification",600]